fUST/lending_fUST_20250725
["ID","MTS","AMOUNT","RATE_DAILY","PERIOD"]
[374629790,1753386656788,-460.0,0.00022166,2]
[374629791,1753386656798,-460.0,0.00022166,2]
[374629792,1753386656807,-2832.84,0.00022166,2]
[374629793,1753386656817,-773.6,0.00022166,2]
[374629794,1753386656827,-460.0,0.00022166,2]
[374629795,1753386656836,-460.0,0.00022166,2]
[374629796,1753386656845,-460.0,0.00022166,2]
[374629797,1753386656855,-460.0,0.00022166,2]
[374629798,1753386656866,-522.65,0.00022166,2]
[374629799,1753386656875,-825.95,0.00022166,2]
[374629800,1753386656886,-1705.29,0.00022166,2]
[374629801,1753386656895,-460.0,0.00022166,2]
[374629802,1753386656905,-657.72,0.00022166,2]
[374629803,1753386656915,-2227.14,0.00022166,2]
[374629804,1753386656925,-816.03,0.00022166,2]
[374629805,1753386656934,-460.0,0.00022166,2]
[374629806,1753386656944,-3063.8,0.00022166,2]
[374629807,1753386656953,-460.0,0.00022166,2]
[374629808,1753386656963,-460.0,0.00022166,2]
[374629809,1753386656972,-460.0,0.00022166,2]
[374629810,1753386656981,-558.32,0.00022166,2]
[374629811,1753386656991,-728.04,0.00022166,2]
[374629812,1753386657000,-2244.87,0.00022166,2]
[374629813,1753386657009,-549.04,0.00022166,2]
[374629814,1753386657019,-151.0,0.00022166,7]
[374629815,1753386657028,-151.0,0.00022166,7]
[374629816,1753386657037,-460.0,0.00022166,2]
[374629817,1753386657047,-1889.32,0.00022166,2]
[374629818,1753386657057,-500.0,0.00022166,2]
[374629819,1753386657066,-460.0,0.00022181,2]
[374629820,1753386657075,-2316.39114688,0.00022207,2]
[374629821,1753386657084,-2000.0,0.00022216,2]
[374629822,1753386657094,-1503.16684721,0.00022216,2]
[374629823,1753386657103,-1000.0,0.00022216,2]
[374629824,1753386657187,-25000.0,0.0002226,2]
[374629825,1753386657197,-460.0,0.00022266,2]
[374629826,1753386657207,-460.0,0.00022266,2]
[374629827,1753386657216,-460.0,0.00022266,2]
[374629828,1753386657226,-460.0,0.00022266,2]
[374629829,1753386657235,-943.03,0.00022266,2]
[374629830,1753386657244,-460.0,0.00022266,2]
[374629831,1753386657254,-842.57,0.00022266,2]
[374629832,1753386657264,-460.0,0.00022266,2]
[374629833,1753386657273,-460.0,0.00022266,2]
[374629834,1753386657283,-460.0,0.00022266,2]
[374629835,1753386657292,-533.02,0.00022266,2]
[374629836,1753386657302,-647.06,0.00022266,2]
[374629837,1753386657311,-665.23,0.00022266,2]
[374629838,1753386657320,-1496.10722544,0.00022325,2]
[374629839,1753386657330,-1571.13677435,0.00022325,2]
[374629840,1753386657339,-905.71031144,0.00022339,2]
[374629841,1753386657348,-2238.64368451,0.00022348,7]
[374629842,1753386657359,-500.0,0.00022367,2]
[374629843,1753386657368,-981.0,0.00022367,2]
[374629844,1753386657378,-884.0,0.00022367,2]
[374629845,1753386657387,-460.0,0.00022438,2]
[374629846,1753386657396,-460.0,0.00022438,2]
[374629847,1753386657406,-489.8,0.00022438,2]
[374629848,1753386657415,-560.91,0.00022438,2]
[374629849,1753386657425,-1942.21,0.00022438,2]
[374629850,1753386657434,-7702.21,0.00022438,2]
[374629851,1753386657445,-480.78,0.00022438,2]
[374629852,1753386657456,-1730.36,0.00022438,2]
[374629853,1753386657467,-460.0,0.00022438,2]
[374629854,1753386657480,-2126.42967626,0.00022438,2]
[374629855,1753386657499,-8.53032374,0.00022438,2]
[374629856,1753386657512,-566.66,0.00022438,2]
[374629857,1753386657525,-325.42967626,0.00022438,2]
[374629858,1753386657539,-50.16363094,0.00022438,2]
[374629859,1753386657549,-2624.06,0.00022438,2]
[374629860,1753386657558,-515.99,0.00022439,2]
[374629861,1753386657568,-460.0,0.00022439,2]
[374629862,1753386657578,-1712.6,0.00022439,2]
[374629863,1753386657587,-1728.48,0.00022439,2]
[374629864,1753386657596,-616.1,0.00022439,2]
[374629865,1753386657606,-481.25,0.00022439,2]
[374629866,1753386657615,-630.54,0.00022439,2]
[374629867,1753386657625,-977.07,0.00022439,2]
[374629868,1753386657636,-562.42767198,0.00022439,2]
[374629869,1753386657647,-642.33,0.00022439,2]
[374629870,1753386657660,-615.26,0.00022439,2]
[374629871,1753386657670,-368.97988873,0.00022439,2]
[374629872,1753386657685,-91.02011127,0.00022439,2]
[374629873,1753386657695,-368.97988873,0.00022439,2]
[374629874,1753386657707,-551.03011127,0.00022439,2]
[374629875,1753386657717,-460.0,0.00022439,2]
[374629876,1753386657728,-299.65635903,0.00022439,2]
[374629877,1753386657738,-460.0,0.00022439,2]
[374629878,1753386657748,-53.5977381,0.00022439,2]
[374629879,1753386657761,-453.95669422,0.00022439,2]
[374629880,1753386657775,-3038.26454868,0.00022439,2]
[374629881,1753386657787,-1060.35158795,0.00022439,2]
[374629882,1753386657800,-464.34943105,0.00022439,2]
[374629883,1753386657812,-867.88,0.00022439,2]
[374629884,1753386657822,-1647.77,0.00022439,2]
[374629885,1753386657833,-929.0,0.00022439,2]
[374629886,1753386657842,-460.0,0.0002244,2]
[374629887,1753386657851,-203.01668841,0.0002244,2]
[374629888,1753386657864,-382.60331159,0.0002244,2]
[374629889,1753386657874,-460.0,0.0002244,2]
[374629890,1753386657883,-74.42711832,0.0002244,2]
[374629891,1753386657896,-385.57288168,0.0002244,2]
[374629892,1753386657906,-427.48854396,0.0002244,2]
[374629893,1753386657918,-32.51145604,0.0002244,2]
[374629894,1753386657927,-490.20147278,0.0002244,2]
[374629895,1753386658234,-394.30966042,0.00019424,2]
[374629896,1753386658246,-460.0,0.00019424,2]
[374629897,1753386658257,-460.0,0.00019425,2]
[374629898,1753386658268,-460.0,0.00019426,2]
[374629899,1753386658278,-460.0,0.00019426,2]
[374629900,1753386658287,-460.0,0.00019698,2]
[374629901,1753386658297,-460.0,0.00019699,2]
[374629902,1753386658307,-460.0,0.000197,2]
[374629903,1753386658317,-460.0,0.00019974,2]
[374629904,1753386658326,-173.58,0.00020248,2]
[374629905,1753386658336,-151.0,0.00021712,2]
[374629906,1753386658346,-151.0,0.00021712,2]
[374629907,1753386658356,-151.0,0.00021712,2]
[374629908,1753386658365,-151.0,0.00021712,2]
[374629909,1753386658375,-151.0,0.00022166,7]
[374629910,1753386658385,-151.0,0.00022166,7]
[374629911,1753386658395,-224.39,0.0002221,2]
[374629912,1753386658405,-99.37852722,0.0002244,2]
[374629913,1753386658414,-488.77,0.0002244,2]
[374629914,1753386658423,-764.54,0.0002244,2]
[374629915,1753386658433,-636.22,0.0002244,2]
[374629916,1753386658444,-1522.22,0.0002244,2]
[374629917,1753386658456,-460.0,0.0002244,2]
[374629918,1753386658466,-2832.84,0.0002244,2]
[374629919,1753386658478,-460.0,0.0002244,2]
[374629920,1753386658490,-460.0,0.0002244,2]
[374629921,1753386658501,-460.0,0.0002244,2]
[374629922,1753386658511,-522.65,0.0002244,2]
[374629923,1753386658521,-825.95,0.0002244,2]
[374629924,1753386658534,-1705.29,0.0002244,2]
[374629925,1753386658543,-460.0,0.0002244,2]
[374629926,1753386658554,-151.0,0.0002244,7]
[374629927,1753386658564,-151.0,0.0002244,7]
[374629928,1753386658574,-151.0,0.0002244,7]
[374629929,1753386658583,-657.72,0.0002244,2]
[374629930,1753386658593,-151.0,0.0002244,7]
[374629931,1753386658602,-151.0,0.0002244,7]
[374629932,1753386658613,-2227.14,0.0002244,2]
[374629933,1753386658623,-816.03,0.0002244,2]
[374629934,1753386658705,-151.0,0.0002244,7]
[374629935,1753386658716,-151.0,0.0002244,7]
[374629936,1753386658726,-151.0,0.0002244,7]
[374629937,1753386658737,-460.0,0.0002244,2]
[374629938,1753386658747,-151.0,0.0002244,7]
[374629939,1753386658758,-3063.8,0.0002244,2]
[374629940,1753386658768,-460.0,0.0002244,2]
[374629941,1753386658778,-460.0,0.0002244,2]
[374629942,1753386658787,-151.0,0.0002244,7]
[374629943,1753386658797,-460.0,0.0002244,2]
[374629944,1753386658807,-151.0,0.0002244,7]
[374629945,1753386658817,-558.32,0.0002244,2]
[374629946,1753386658827,-151.0,0.0002244,7]
[374629947,1753386658838,-151.0,0.0002244,7]
[374629948,1753386658849,-728.04,0.0002244,2]
[374629949,1753386658862,-151.0,0.0002244,7]
[374629950,1753386658872,-2244.87,0.0002244,2]
[374629951,1753386658882,-151.0,0.0002244,7]
[374629952,1753386658892,-549.04,0.0002244,2]
[374629953,1753386658902,-460.0,0.0002244,2]
[374629954,1753386658914,-1889.32,0.0002244,2]
[374629955,1753386658923,-340.257464,0.0002244,7]
[374629956,1753386658933,-340.257464,0.0002244,7]
[374629957,1753386658943,-500.0,0.0002244,2]
[374629958,1753386658953,-1699.46,0.00022465,2]
[374629959,1753386658963,-300.0,0.00022466,2]
[374629960,1753386658973,-231.76193867,0.00022466,2]
[374629961,1753386658983,-166.67,0.000225,2]
[374629962,1753386658993,-3000.0,0.00022512,2]
[374629963,1753386659003,-460.0,0.0002254,2]
[374629964,1753386659013,-460.0,0.0002254,2]
[374629965,1753386659023,-460.0,0.0002254,2]
[374629966,1753386659034,-354.78420991,0.0002254,2]
[374629967,1753386659044,-943.03,0.0002254,2]
[374629968,1753386659053,-460.0,0.0002254,2]
[374629969,1753386659063,-842.57,0.0002254,2]
[374629970,1753386659073,-460.0,0.0002254,2]
[374629971,1753386659082,-460.0,0.0002254,2]
[374629972,1753386659092,-460.0,0.0002254,2]
[374629973,1753386659102,-533.02,0.0002254,2]
[374629974,1753386659114,-647.06,0.0002254,2]
[374629975,1753386659123,-151.0,0.0002254,7]
[374629976,1753386659133,-2238.64368451,0.00022555,7]
[374629977,1753386659143,-3609.07108579,0.0002259,2]
[374629978,1753386659153,-476.79463412,0.000226,7]
[374629979,1753386659164,-389.99342437,0.00022641,2]
[374629980,1753386659173,-981.0,0.00022641,2]
[374629981,1753386659183,-884.0,0.00022641,2]
[374629982,1753386659193,-460.0,0.00022712,2]
[374629983,1753386659203,-460.0,0.00022712,2]
[374629984,1753386659212,-489.8,0.00022712,2]
[374629985,1753386659223,-560.91,0.00022712,2]
[374629986,1753386659233,-1942.21,0.00022712,2]
[374629987,1753386659243,-7702.21,0.00022712,2]
[374629988,1753386659253,-480.78,0.00022712,2]
[374629989,1753386659264,-1730.36,0.00022712,2]
[374629990,1753386659274,-460.0,0.00022712,2]
[374629991,1753386659284,-2134.96,0.00022712,2]
[374629992,1753386659294,-566.66,0.00022712,2]
[374629993,1753386659304,-2624.06,0.00022712,2]
[374629994,1753386659313,-151.0,0.00022713,7]
[374629995,1753386659323,-515.99,0.00022713,2]
[374629996,1753386659334,-50.66179533,0.00022713,2]
[374629997,1753386659557,-352.156064,0.00019425,2]
[374629998,1753386659569,-107.843936,0.00019425,2]
[374629999,1753386659579,-460.0,0.00019699,2]
[374630000,1753386659589,-460.0,0.00019972,2]
[374630001,1753386659598,-460.0,0.00019973,2]
[374630002,1753386659609,-460.0,0.00020247,2]
[374630003,1753386659620,-460.0,0.00020521,2]
[374630004,1753386659630,-460.0,0.00020795,2]
[374630005,1753386659640,-460.0,0.00021069,2]
[374630006,1753386659651,-314.52,0.00021343,2]
[374630007,1753386659661,-859.491215,0.00021425,2]
[374630008,1753386659671,-151.0,0.00021712,2]
[374630009,1753386659681,-151.0,0.00021712,2]
[374630010,1753386659691,-305.727536,0.0002244,7]
[374630011,1753386659702,-135.417313,0.00022713,2]
[374630012,1753386854287,4143.57827636,0.00018424,2]
[374630013,1753386854815,4291.65645834,0.00018424,2]
[374630014,1753386958916,315.583082,0.00018399,2]
[374630016,1753387240721,24900.0,0.00018324,2]
[374630017,1753387381519,-229.030277,0.00019178,2]
[374630018,1753387381548,-177.23981268,0.00019223,2]
[374630019,1753387381573,-811.0,0.00019321,2]
[374630020,1753387381601,-500.0,0.00019321,2]
[374630021,1753387381627,-500.0,0.00019321,2]
[374630022,1753387381654,-500.0,0.00019321,2]
[374630023,1753387381683,-282.72991032,0.00019321,2]
[374630024,1753387383157,-300.0,0.0001932,2]
[374630025,1753387383186,-217.27008968,0.00019321,2]
[374630026,1753387383216,-500.0,0.00019321,2]
[374630027,1753387383246,-500.0,0.00019321,2]
[374630028,1753387383274,-500.0,0.00019321,2]
[374630029,1753387383303,-500.0,0.00019321,2]
[374630030,1753387383332,-482.72991032,0.00019321,2]
[374630031,1753387383964,-17.27008968,0.00019321,2]
[374630032,1753387383993,-500.0,0.00019321,2]
[374630033,1753387384023,-500.0,0.00019321,2]
[374630034,1753387384053,-500.0,0.00019321,2]
[374630035,1753387384082,-500.0,0.00019321,2]
[374630036,1753387384117,-500.0,0.00019321,2]
[374630037,1753387384149,-482.72991032,0.00019321,2]
[374630038,1753387397634,-17.27008968,0.00019321,2]
[374630039,1753387397662,-500.0,0.00019321,2]
[374630040,1753387397688,-500.0,0.00019321,2]
[374630041,1753387397715,-500.0,0.00019321,2]
[374630042,1753387397740,-82.72991032,0.00019321,2]
[374630043,1753387637154,-300.0,0.00019318,2]
[374630044,1753387637176,-300.0,0.00019319,2]
[374630045,1753387637199,-1200.0,0.00019319,2]
[374630046,1753387637224,-500.0,0.00019319,2]
[374630047,1753387637247,-500.0,0.00019319,2]
[374630048,1753387637272,-124.40516399,0.00019319,2]
[374630049,1753387640118,-375.59483601,0.00019319,2]
[374630050,1753387640141,-440.17698512,0.00019319,2]
[374630051,1753387704299,150.0,0.000189,2]
[374630052,1753387714118,292.8782133,0.00018741,2]
[374630082,1753387832239,-199.0,0.00019319,2]
[374630084,1753387832249,-300.0,0.00019319,2]
[374630086,1753387832262,-300.0,0.00019319,2]
[374630088,1753387832270,-1200.0,0.00019319,2]
[374630090,1753387832279,-460.0,0.0001932,2]
[374630092,1753387832289,-460.0,0.0001932,2]
[374630094,1753387832299,-460.0,0.0001932,2]
[374630096,1753387832308,-460.0,0.0001932,2]
[374630098,1753387832317,-460.0,0.0001932,2]
[374630100,1753387832327,-1521.33,0.0001932,2]
[374630102,1753387832337,-460.0,0.0001932,2]
[374630104,1753387832347,-955.51856453,0.0001932,2]
[374630106,1753387832357,-6372.51,0.0001932,2]
[374630108,1753387832366,-1373.79,0.0001932,2]
[374630110,1753387832376,-460.0,0.0001932,2]
[374630112,1753387832385,-460.0,0.0001932,2]
[374630113,1753387832395,-460.0,0.0001932,2]
[374630115,1753387832405,-460.0,0.0001932,2]
[374630116,1753387832414,-460.0,0.0001932,2]
[374630118,1753387832423,-300.85143546,0.0001932,2]
[374630151,1753387838057,-500.0,0.00019319,2]
[374630152,1753387838069,-500.0,0.00019319,2]
[374630153,1753387838078,-448.04637954,0.00019319,2]
[374630154,1753387838088,-500.0,0.00019319,2]
[374630155,1753387838098,-500.0,0.00019319,2]
[374630156,1753387838108,-500.0,0.00019319,2]
[374630157,1753387838117,-500.0,0.00019319,2]
[374630158,1753387838127,-500.0,0.00019319,2]
[374630159,1753387838138,-500.0,0.00019319,2]
[374630160,1753387838147,-500.0,0.00019319,2]
[374630161,1753387838157,-500.0,0.00019319,2]
[374630163,1753387838168,-500.0,0.00019319,2]
[374630164,1753387838178,-159.14856454,0.0001932,2]
[374630165,1753387838187,-2055.71,0.0001932,2]
[374630166,1753387838197,-1743.0,0.0001932,2]
[374630167,1753387838207,-460.0,0.0001932,2]
[374630168,1753387838218,-460.0,0.00019321,2]
[374630169,1753387838228,-460.0,0.00019321,2]
[374630170,1753387838239,-460.0,0.00019321,2]
[374630171,1753387838248,-460.74220114,0.00019321,2]
[374630172,1753387838259,-460.0,0.00019321,2]
[374630173,1753387838271,-460.0,0.00019321,2]
[374630174,1753387838282,-460.0,0.00019321,2]
[374630175,1753387838292,-460.0,0.00019321,2]
[374630176,1753387838304,-1544.77,0.00019321,2]
[374630177,1753387838316,-460.0,0.00019321,2]
[374630178,1753387838326,-460.0,0.00019321,2]
[374630179,1753387838338,-460.0,0.00019321,2]
[374630180,1753387838349,-460.0,0.00019321,2]
[374630181,1753387838360,-708.71,0.00019321,2]
[374630182,1753387838371,-1479.59,0.00019321,2]
[374630183,1753387838381,-562.18,0.00019321,2]
[374630184,1753387838391,-460.0,0.00019321,2]
[374630185,1753387838400,-460.0,0.00019321,2]
[374630186,1753387838410,-460.0,0.00019321,2]
[374630187,1753387838420,-776.31,0.00019321,2]
[374630188,1753387838429,-460.0,0.00019321,2]
[374630189,1753387838440,-460.0,0.00019321,2]
[374630190,1753387838451,-460.0,0.00019321,2]
[374630191,1753387838460,-460.0,0.00019321,2]
[374630192,1753387838471,-460.0,0.00019321,2]
[374630193,1753387838482,-575.33,0.00019321,2]
[374630194,1753387838496,-523.68,0.00019321,2]
[374630195,1753387838507,-771.58,0.00019321,2]
[374630196,1753387838517,-460.0,0.00019321,2]
[374630197,1753387838528,-460.0,0.00019321,2]
[374630198,1753387838538,-460.0,0.00019321,2]
[374630199,1753387838550,-460.0,0.00019321,2]
[374630200,1753387838562,-460.0,0.00019321,2]
[374630201,1753387838572,-3931.32,0.00019321,2]
[374630202,1753387838583,-1363.7,0.00019321,2]
[374630203,1753387838594,-460.0,0.00019322,2]
[374630204,1753387838605,-460.0,0.00019322,2]
[374630205,1753387838614,-460.0,0.00019322,2]
[374630206,1753387838625,-301.49225741,0.00019322,2]
[374630207,1753387838636,-460.0,0.00019322,2]
[374630208,1753387838646,-460.0,0.00019322,2]
[374630209,1753387838657,-460.0,0.00019322,2]
[374630210,1753387838666,-460.0,0.00019322,2]
[374630211,1753387838676,-460.0,0.00019322,2]
[374630212,1753387838688,-460.0,0.00019322,2]
[374630213,1753387838698,-460.0,0.00019322,2]
[374630214,1753387838708,-460.0,0.00019322,2]
[374630215,1753387838718,-460.0,0.00019322,2]
[374630216,1753387838728,-460.0,0.00019322,2]
[374630217,1753387838739,-460.0,0.00019322,2]
[374630218,1753387838748,-483.48,0.00019322,2]
[374630219,1753387838758,-350.63638983,0.00019322,2]
[374630220,1753387838771,-109.36361017,0.00019322,2]
[374630221,1753387838781,-460.0,0.00019322,2]
[374630222,1753387838790,-354.06811774,0.00019322,2]
[374630223,1753387838803,-310.36188226,0.00019322,2]
[374630224,1753387838813,-460.0,0.00019322,2]
[374630225,1753387838823,-460.0,0.00019322,2]
[374630226,1753387838832,-460.0,0.00019322,2]
[374630227,1753387838842,-460.0,0.00019322,2]
[374630228,1753387838852,-460.0,0.00019322,2]
[374630229,1753387838864,-460.0,0.00019322,2]
[374630230,1753387838873,-1228.91,0.00019322,2]
[374630231,1753387838883,-460.0,0.00019322,2]
[374630232,1753387838893,-460.0,0.00019322,2]
[374630233,1753387838903,-460.0,0.00019322,2]
[374630234,1753387838912,-2206.95,0.00019322,2]
[374630235,1753387838922,-460.0,0.00019322,2]
[374630236,1753387838931,-460.0,0.00019322,2]
[374630237,1753387838941,-1508.06,0.00019322,2]
[374630238,1753387838950,-460.0,0.00019322,2]
[374630239,1753387838963,-460.0,0.00019322,2]
[374630240,1753387838973,-2149.61,0.00019322,2]
[374630241,1753387838982,-2303.95,0.00019322,2]
[374630242,1753387838992,-460.0,0.00019322,2]
[374630243,1753387839002,-460.0,0.00019322,2]
[374630244,1753387839012,-548.79775648,0.00019323,2]
[374630245,1753387839022,-460.0,0.00019323,2]
[374630246,1753387839032,-460.0,0.00019323,2]
[374630247,1753387839042,-460.0,0.00019323,2]
[374630248,1753387839051,-460.0,0.00019323,2]
[374630249,1753387839061,-541.59,0.00019323,2]
[374630250,1753387839070,-460.0,0.00019323,2]
[374630251,1753387839080,-395.5885001,0.00019323,2]
[374630252,1753387839090,-460.0,0.00019323,2]
[374630253,1753387839100,-460.0,0.00019323,2]
[374630254,1753387839109,-460.0,0.00019323,2]
[374630255,1753387839119,-460.0,0.00019323,2]
[374630256,1753387839128,-460.0,0.00019323,2]
[374630257,1753387839139,-488.29088345,0.00019323,2]
[374630258,1753387839149,-460.0,0.00019323,2]
[374630259,1753387839159,-460.0,0.00019323,2]
[374630260,1753387839169,-460.0,0.00019323,2]
[374630261,1753387839179,-460.0,0.00019323,2]
[374630262,1753387839189,-460.0,0.00019323,2]
[374630263,1753387839199,-100.26774201,0.00019323,2]
[374630264,1753387839354,-359.73225799,0.00019323,2]
[374630265,1753387839364,-554.63,0.00019323,2]
[374630266,1753387839373,-460.0,0.00019323,2]
[374630267,1753387839384,-460.0,0.00019323,2]
[374630268,1753387839526,-460.0,0.00019323,2]
[374630269,1753387839538,-460.0,0.00019323,2]
[374630270,1753387839547,-462.93410712,0.00019323,2]
[374630271,1753387839557,-464.817689,0.00019323,2]
[374630272,1753387839567,-460.0,0.00019323,2]
[374630273,1753387839576,-460.0,0.00019323,2]
[374630274,1753387839586,-460.0,0.00019323,2]
[374630275,1753387839596,-460.0,0.00019323,2]
[374630276,1753387839606,-460.0,0.00019323,2]
[374630277,1753387839616,-556.23666579,0.00019323,2]
[374630278,1753387839626,-460.0,0.00019323,2]
[374630280,1753387839637,-460.0,0.00019323,2]
[374630281,1753387839646,-460.0,0.00019323,2]
[374630283,1753387839656,-460.0,0.00019323,2]
[374630286,1753387839666,-460.0,0.00019323,2]
[374630288,1753387839675,-460.0,0.00019323,2]
[374630290,1753387839686,-460.0,0.00019323,2]
[374630291,1753387839695,-460.0,0.00019323,2]
[374630294,1753387839706,-460.0,0.00019323,2]
[374630296,1753387839715,-460.0,0.00019323,2]
[374630298,1753387839724,-460.0,0.00019323,2]
[374630301,1753387839734,-460.0,0.00019323,2]
[374630303,1753387839743,-460.0,0.00019323,2]
[374630305,1753387839752,-460.0,0.00019323,2]
[374630307,1753387839761,-460.0,0.00019323,2]
[374630310,1753387839780,-538.6,0.00019323,2]
[374630312,1753387839791,-460.0,0.00019323,2]
[374630314,1753387839802,-460.0,0.00019323,2]
[374630317,1753387839812,-460.0,0.00019323,2]
[374630319,1753387839822,-460.0,0.00019323,2]
[374630321,1753387839832,-379.40167366,0.00019323,2]
[374630323,1753387839842,-460.0,0.00019323,2]
[374630326,1753387839852,-460.0,0.00019323,2]
[374630328,1753387839862,-460.0,0.00019323,2]
[374630330,1753387839873,-460.0,0.00019323,2]
[374630332,1753387839883,-460.0,0.00019323,2]
[374630334,1753387839893,-662.04,0.00019323,2]
[374630336,1753387839903,-460.0,0.00019323,2]
[374630338,1753387839913,-687.89,0.00019323,2]
[374630340,1753387839923,-460.0,0.00019323,2]
[374630342,1753387839933,-715.17,0.00019323,2]
[374630344,1753387839943,-460.0,0.00019323,2]
[374630346,1753387839953,-641.9,0.00019323,2]
[374630348,1753387839963,-460.0,0.00019323,2]
[374630350,1753387839973,-460.0,0.00019323,2]
[374630352,1753387839983,-460.0,0.00019323,2]
[374630355,1753387839994,-460.0,0.00019323,2]
[374630357,1753387840004,-500.55,0.00019323,2]
[374630360,1753387840014,-460.0,0.00019323,2]
[374630363,1753387840024,-460.0,0.00019323,2]
[374630366,1753387840034,-460.0,0.00019323,2]
[374630369,1753387840044,-460.0,0.00019323,2]
[374630372,1753387840054,-460.0,0.00019323,2]
[374630375,1753387840064,-460.0,0.00019323,2]
[374630378,1753387840082,-573.19,0.00019323,2]
[374630381,1753387840095,-460.0,0.00019323,2]
[374630384,1753387840105,-587.24,0.00019323,2]
[374630387,1753387840115,-542.07,0.00019323,2]
[374630390,1753387840126,-715.74,0.00019323,2]
[374630393,1753387840147,-460.0,0.00019323,2]
[374630396,1753387840157,-460.0,0.00019323,2]
[374630399,1753387840167,-460.0,0.00019323,2]
[374630402,1753387840178,-460.0,0.00019323,2]
[374630405,1753387840188,-460.0,0.00019323,2]
[374630408,1753387840198,-460.0,0.00019323,2]
[374630411,1753387840208,-460.0,0.00019323,2]
[374630414,1753387840217,-460.0,0.00019323,2]
[374630417,1753387840227,-460.0,0.00019323,2]
[374630421,1753387840237,-495.94,0.00019323,2]
[374630424,1753387840248,-460.0,0.00019323,2]
[374630427,1753387840259,-460.0,0.00019323,2]
[374630430,1753387840272,-1822.17,0.00019323,2]
[374630433,1753387840283,-460.0,0.00019323,2]
[374630436,1753387840293,-460.0,0.00019323,2]
[374630439,1753387840303,-460.0,0.00019324,2]
[374630442,1753387840313,-460.0,0.00019324,2]
[374630445,1753387840324,-460.0,0.00019324,2]
[374630448,1753387840334,-460.0,0.00019324,2]
[374630451,1753387840344,-460.0,0.00019324,2]
[374630454,1753387840355,-460.0,0.00019324,2]
[374630457,1753387840365,-460.0,0.00019324,2]
[374630460,1753387840375,-334.54338026,0.00019324,2]
[374630463,1753387840392,-125.45661974,0.00019324,2]
[374630464,1753387840402,-460.0,0.00019324,2]
[374630467,1753387840412,-460.0,0.00019324,2]
[374630470,1753387840422,-460.0,0.00019324,2]
[374630473,1753387840432,-460.0,0.00019324,2]
[374630477,1753387840443,-460.0,0.00019324,2]
[374630480,1753387840452,-460.0,0.00019324,2]
[374630483,1753387840462,-460.0,0.00019324,2]
[374630486,1753387840471,-556.42,0.00019324,2]
[374630487,1753387840481,-476.94684712,0.00019324,2]
[374630490,1753387840490,-479.81916219,0.00019325,2]
[374630495,1753387840503,-2550.98,0.00019325,2]
[374630531,1753387840819,-460.0,0.00019321,2]
[374630533,1753387840829,-568.6187293,0.00019325,2]
[374630835,1753387843438,-460.0,0.0001932,2]
[374630836,1753387843449,-460.0,0.00019323,2]
[374630837,1753387843459,-33640.58210851,0.00019325,2]
[374630838,1753387843469,-500.0,0.00019373,2]
[374630839,1753387843478,-500.0,0.00019373,2]
[374630840,1753387843487,-500.0,0.00019373,2]